fUSD/lending_fUSD_20240813
["ID","MTS","AMOUNT","RATE_DAILY","PERIOD"]
[334751118,1723535477385,-362.43686831,0.00014825,2]
[334751119,1723535477394,-500.0,0.00014825,2]
[334751120,1723535477403,-427.38167884,0.00014825,2]
[334751121,1723535477412,-500.0,0.00014825,2]
[334751122,1723535477422,-500.0,0.00014825,2]
[334751123,1723535477431,-500.0,0.00014825,2]
[334751124,1723535477440,-500.0,0.00014825,2]
[334751125,1723535477449,-500.0,0.00014825,2]
[334751126,1723535477459,-500.0,0.00014825,2]
[334751127,1723535477469,-184.35121102,0.00014825,2]
[334751128,1723535477478,-500.0,0.00014825,2]
[334751129,1723535477487,-469.92592154,0.00014825,2]
[334751130,1723535477496,-250.60255025,0.00014825,2]
[334751131,1723535477506,-500.0,0.00014825,2]
[334751132,1723535477515,-500.0,0.00014825,2]
[334751133,1723535477524,-500.0,0.00014825,2]
[334751134,1723535477533,-500.0,0.00014825,2]
[334751135,1723535477545,-500.0,0.00014825,2]
[334751136,1723535477555,-500.0,0.00014825,2]
[334751137,1723535477565,-500.0,0.00014825,2]
[334751138,1723535477574,-500.0,0.00014825,2]
[334751139,1723535477584,-544.10770754,0.00014825,2]
[334751140,1723535477594,-500.0,0.00014825,2]
[334751141,1723535477603,-500.0,0.00014825,2]
[334751142,1723535477612,-500.0,0.00014825,2]
[334751143,1723535477623,-500.0,0.00014825,2]
[334751144,1723535477633,-500.0,0.00014825,2]
[334751145,1723535477643,-803.87,0.00014825,2]
[334751146,1723535477652,-500.0,0.00014825,2]
[334751147,1723535477661,-500.0,0.00014825,2]
[334751148,1723535477670,-420.0,0.00014829,2]
[334751149,1723535477680,-1166.94953749,0.00014889,5]
[334751150,1723535477689,-500.0,0.00014895,2]
[334751151,1723535477698,-1863.44,0.00014895,2]
[334751152,1723535477707,-500.0,0.00014895,2]
[334751153,1723535477716,-500.0,0.00014895,2]
[334751154,1723535477726,-500.0,0.00014895,2]
[334751155,1723535477735,-500.0,0.00014895,2]
[334751156,1723535477744,-500.0,0.00014895,2]
[334751157,1723535477755,-500.0,0.00014895,2]
[334751158,1723535477764,-500.0,0.00014895,2]
[334751159,1723535477773,-500.0,0.00014895,2]
[334751160,1723535477782,-528.25972816,0.00014895,2]
[334751161,1723535477792,-150.0,0.00014895,2]
[334751162,1723535477801,-1155.62,0.00014895,2]
[334751163,1723535477810,-500.0,0.00014895,2]
[334751164,1723535477819,-714.2,0.00014895,2]
[334751165,1723535477828,-1241.0,0.00014895,2]
[334751166,1723535477837,-500.0,0.00014895,2]
[334751167,1723535477846,-755.25,0.00014895,2]
[334751168,1723535477855,-791.16,0.00014895,2]
[334751169,1723535477864,-500.0,0.00014895,2]
[334751170,1723535477875,-500.0,0.00014895,2]
[334751171,1723535477884,-500.0,0.00014895,2]
[334751172,1723535477893,-946.68,0.00014895,2]
[334751173,1723535477903,-500.0,0.00014895,2]
[334751174,1723535477912,-1359.34,0.00014895,2]
[334751175,1723535477922,-500.0,0.00014895,2]
[334751176,1723535477931,-500.0,0.00014895,2]
[334751177,1723535477940,-1743.71,0.00014895,2]
[334751178,1723535477950,-1023.06,0.00014895,2]
[334751179,1723535477959,-500.0,0.00014895,2]
[334751180,1723535477968,-500.0,0.00014895,2]
[334751181,1723535477977,-778.62,0.00014895,2]
[334751182,1723535477987,-1760.09,0.00014895,2]
[334751183,1723535477996,-500.0,0.00014895,2]
[334751184,1723535478007,-500.0,0.00014895,2]
[334751185,1723535478016,-500.0,0.00014895,2]
[334751186,1723535478026,-500.0,0.00014895,2]
[334751187,1723535478036,-1230.55,0.00014895,2]
[334751188,1723535478046,-537.47,0.00014895,2]
[334751189,1723535478056,-1688.57,0.00014895,2]
[334751190,1723535478066,-1001.08,0.00014895,2]
[334751191,1723535478075,-828.014967,0.00014895,2]
[334751192,1723535478085,-500.0,0.00014895,2]
[334751193,1723535478095,-435.949083,0.00014895,2]
[334751194,1723535478104,-500.0,0.00014895,2]
[334751195,1723535478114,-28588.8833,0.00014895,2]
[334751196,1723535478124,-21831.704954,0.00014895,2]
[334751197,1723535478133,-500.0,0.00014895,2]
[334751198,1723535478143,-6177.95,0.00014895,2]
[334751199,1723535478153,-500.0,0.00014895,2]
[334751200,1723535478163,-4092.104095,0.00014895,2]
[334751201,1723535478173,-500.0,0.00014895,2]
[334751202,1723535478182,-2922.39,0.00014895,2]
[334751203,1723535478192,-500.0,0.00014895,2]
[334751204,1723535478202,-500.0,0.00014895,2]
[334751205,1723535478211,-1300.36,0.00014895,2]
[334751206,1723535478221,-500.0,0.00014895,2]
[334751207,1723535478230,-500.0,0.00014895,2]
[334751208,1723535478240,-609.65,0.00014895,2]
[334751209,1723535478249,-523.35,0.00014895,2]
[334751210,1723535478259,-1411.68,0.00014895,2]
[334751211,1723535478268,-500.0,0.00014895,2]
[334751212,1723535478278,-500.0,0.00014895,2]
[334751213,1723535478288,-500.0,0.00014895,2]
[334751214,1723535478297,-1209.11,0.00014895,2]
[334751215,1723535478477,-518.03,0.00014895,2]
[334751216,1723535478488,-1085.25,0.00014895,2]
[334751217,1723535478498,-500.0,0.00014895,2]
[334751218,1723535478510,-991.7,0.00014895,2]
[334751219,1723535478519,-507.82,0.00014895,2]
[334751220,1723535478529,-648.53664227,0.00014895,2]
[334751221,1723535478542,-500.0,0.00014895,2]
[334751222,1723535478551,-500.0,0.00014895,2]
[334751223,1723535478562,-686.92,0.00014895,2]
[334751224,1723535478571,-500.0,0.00014895,2]
[334751225,1723535478582,-2622.01,0.00014895,2]
[334751226,1723535478593,-500.0,0.00014895,2]
[334751227,1723535478603,-551.73,0.00014895,2]
[334751228,1723535478613,-536.79490377,0.00014895,2]
[334751229,1723535478625,-500.0,0.00014895,2]
[334751230,1723535478636,-1670.97,0.00014895,2]
[334751231,1723535478646,-670.23,0.00014895,2]
[334751232,1723535478656,-500.0,0.00014895,2]
[334751233,1723535478668,-3541.36,0.00014895,2]
[334751234,1723535478678,-500.0,0.00014895,2]
[334751235,1723535478687,-500.0,0.00014895,2]
[334751236,1723535478697,-500.0,0.00014895,2]
[334751237,1723535478708,-500.0,0.00014895,2]
[334751238,1723535478718,-191.40622661,0.00014895,2]
[334751239,1723535478728,-500.0,0.00014895,2]
[334751240,1723535478737,-500.0,0.00014895,2]
[334751241,1723535478747,-1085.98,0.00014895,2]
[334751242,1723535478757,-500.0,0.00014895,2]
[334751243,1723535478767,-500.0,0.00014895,2]
[334751244,1723535478776,-2167.9,0.00014895,2]
[334751245,1723535478786,-500.0,0.00014895,2]
[334751246,1723535478796,-500.0,0.00014895,2]
[334751247,1723535478805,-500.0,0.00014895,2]
[334751248,1723535478815,-500.0,0.00014895,2]
[334751249,1723535478825,-2066.64,0.00014895,2]
[334751250,1723535478834,-1180.27,0.00014895,2]
[334751251,1723535478844,-913.4,0.00014895,2]
[334751252,1723535478853,-500.0,0.00014895,2]
[334751253,1723535478863,-1756.06,0.00014895,2]
[334751254,1723535478873,-500.0,0.00014895,2]
[334751255,1723535478883,-500.0,0.00014895,2]
[334751256,1723535478892,-610.16,0.00014895,2]
[334751257,1723535478902,-4710.01,0.00014895,2]
[334751258,1723535478911,-500.0,0.00014895,2]
[334751259,1723535478921,-1586.08,0.00014895,2]
[334751260,1723535478930,-500.0,0.00014895,2]
[334751261,1723535478940,-500.0,0.00014895,2]
[334751262,1723535478950,-500.0,0.00014895,2]
[334751263,1723535478961,-500.0,0.00014895,2]
[334751264,1723535478971,-842.93,0.00014895,2]
[334751265,1723535478980,-500.84,0.00014895,2]
[334751266,1723535478990,-500.0,0.00014895,2]
[334751267,1723535478999,-500.0,0.00014895,2]
[334751268,1723535479008,-934.19,0.00014895,2]
[334751269,1723535479017,-500.0,0.00014895,2]
[334751270,1723535479027,-4812.55,0.00014895,2]
[334751271,1723535479037,-500.0,0.00014895,2]
[334751272,1723535479046,-500.0,0.00014895,2]
[334751273,1723535479055,-605.96,0.00014895,2]
[334751274,1723535479065,-755.9,0.00014895,2]
[334751275,1723535479074,-1219.63,0.00014895,2]
[334751276,1723535479083,-500.0,0.00014895,2]
[334751277,1723535479092,-889.59,0.00014895,2]
[334751278,1723535479102,-2146.37,0.00014895,2]
[334751279,1723535479112,-521.65,0.00014895,2]
[334751280,1723535479121,-500.0,0.00014895,2]
[334751281,1723535479130,-2584.53,0.00014895,2]
[334751282,1723535479140,-500.0,0.00014895,2]
[334751283,1723535479150,-500.0,0.00014895,2]
[334751284,1723535479160,-500.0,0.00014895,2]
[334751285,1723535479169,-500.0,0.00014895,2]
[334751286,1723535479178,-500.0,0.00014895,2]
[334751287,1723535479188,-265.73088962,0.00014895,2]
[334751288,1723535479197,-690.9,0.00014895,2]
[334751289,1723535479207,-645.82,0.00014895,2]
[334751290,1723535479217,-500.0,0.00014895,2]
[334751291,1723535479227,-4824.32,0.00014895,2]
[334751292,1723535479237,-500.0,0.00014895,2]
[334751293,1723535479247,-2092.45,0.00014895,2]
[334751294,1723535479257,-500.0,0.00014895,2]
[334751295,1723535479269,-1427.21,0.00014895,2]
[334751296,1723535479279,-416.61734756,0.00014895,2]
[334751297,1723535479288,-232.98690696,0.00014895,2]
[334751298,1723535479298,-500.0,0.00014895,2]
[334751299,1723535479308,-500.0,0.00014895,2]
[334751300,1723535479317,-500.0,0.00014895,2]
[334751301,1723535479326,-500.0,0.00014895,2]
[334751302,1723535479336,-500.0,0.00014895,2]
[334751303,1723535479346,-500.0,0.00014895,2]
[334751304,1723535479356,-500.0,0.00014895,2]
[334751305,1723535479365,-2925.2,0.00014895,2]
[334751306,1723535479375,-535.53087523,0.00014895,2]
[334751307,1723535479384,-500.0,0.00014895,2]
[334751308,1723535479394,-500.0,0.00014895,2]
[334751309,1723535479404,-531.16504504,0.00014899,2]
[334751310,1723535479413,-8700.0,0.000149,5]
[334751311,1723535479423,-224.38282423,0.00014907,2]
[334751312,1723535479432,-3108.3,0.00014999,2]
[334751313,1723535479441,-3108.3,0.00014999,2]
[334751314,1723535479450,-3108.3,0.00014999,2]
[334751315,1723535479459,-3205.28,0.00014999,2]
[334751316,1723535479468,-3205.28,0.00014999,2]
[334751317,1723535479478,-3205.28,0.00014999,2]
[334751318,1723535479487,-281753.09928176,0.00015,2]
[334751319,1723535479497,-222847.34762291,0.00015,2]
[334751320,1723535479508,-265.01762728,0.00015,2]
[334751321,1723535479518,-495.0,0.00015,2]
[334751322,1723535479527,-9352.0,0.00015,10]
[334751323,1723535479537,-2826.0,0.00015,2]
[334751324,1723535479551,-2500.0,0.00015,2]
[334751325,1723535479561,-2500.0,0.00015,2]
[334751326,1723535479570,-495.0,0.00015,2]
[334751327,1723535479579,-1625.0,0.00015,2]
[334751328,1723535479590,-10272.0,0.00015,2]
[334751329,1723535479599,-1011.4,0.00015,2]
[334751330,1723535479609,-304.3,0.00015,2]
[334751331,1723535479619,-150.0,0.00015,2]
[334751332,1723535479630,-150.0,0.00015018,2]
[334751333,1723535479640,-308.32,0.00015032,2]
[334751334,1723535479650,-224.38282423,0.00015035,2]
[334751335,1723535479660,-150.0,0.00015043,2]
[334751336,1723535479670,-794.0,0.00015044,2]
[334751337,1723535479680,-500.0,0.00015068,2]
[334751338,1723535479689,-500.0,0.00015068,2]
[334751339,1723535479699,-500.0,0.00015068,2]
[334751340,1723535479713,-500.0,0.00015068,2]
[334751341,1723535479724,-771.68,0.00015068,2]
[334751342,1723535479734,-500.0,0.00015068,2]
[334751343,1723535479744,-300.0,0.00015068,2]
[334751344,1723535479755,-1103.589328,0.00015068,2]
[334751345,1723535479776,-982.89253478,0.00015077,2]
[334751346,1723535479786,-1412.75,0.00015097,2]
[334751347,1723535479796,-500.0,0.00015097,2]
[334751348,1723535479807,-500.0,0.00015097,2]
[334751349,1723535479817,-500.0,0.00015097,2]
[334751350,1723535479827,-156.45741433,0.00015098,2]
[334751351,1723535479837,-500.0,0.00015098,2]
[334751352,1723535479847,-500.0,0.00015098,2]
[334751353,1723535479857,-508.59,0.00015098,2]
[334751354,1723535479867,-539.81115212,0.00015098,2]
[334751355,1723535479877,-500.0,0.00015098,2]
[334751356,1723535479887,-152.21909877,0.00015098,2]
[334751357,1723535479897,-518.8553386,0.00015098,2]
[334751358,1723535479907,-543.18325859,0.00015098,2]
[334751359,1723535479918,-206.78922423,0.00015098,2]
[334751360,1723535479928,-500.0,0.00015098,2]
[334751361,1723535479938,-500.0,0.00015098,2]
[334751362,1723535479948,-531.85061654,0.00015098,2]
[334751363,1723535479958,-500.0,0.00015098,2]
[334751364,1723535479968,-500.0,0.00015098,2]
[334751365,1723535479978,-490.48170683,0.00015098,2]
[334751366,1723535479987,-307.39535987,0.00015098,2]
[334751367,1723535479997,-500.0,0.00015098,2]
[334751368,1723535480006,-500.0,0.00015098,2]
[334751369,1723535480016,-500.0,0.00015098,2]
[334751370,1723535480025,-503.29722694,0.00015098,2]
[334751371,1723535480035,-500.0,0.00015098,2]
[334751372,1723535480045,-500.0,0.00015098,2]
[334751373,1723535480055,-500.0,0.00015098,2]
[334751374,1723535480064,-500.0,0.00015098,2]
[334751375,1723535480074,-275.24852241,0.00015098,2]
[334751376,1723535480086,-500.0,0.00015098,2]
[334751377,1723535480096,-500.0,0.00015098,2]
[334751378,1723535480106,-625.45191063,0.00015098,2]
[334751379,1723535480116,-500.0,0.00015098,2]
[334751380,1723535480126,-500.0,0.00015098,2]
[334751381,1723535480136,-537.10836482,0.00015098,2]
[334751382,1723535480145,-500.0,0.00015098,2]
[334751383,1723535480155,-500.0,0.00015098,2]
[334751384,1723535480165,-500.0,0.00015098,2]
[334751385,1723535480175,-500.0,0.00015098,2]
[334751386,1723535480185,-500.0,0.00015098,2]
[334751387,1723535480195,-340.6053603,0.00015098,2]
[334751388,1723535480206,-455.01454314,0.00015098,2]
[334751389,1723535480216,-509.45472207,0.00015098,2]
[334751390,1723535480226,-397.51691599,0.00015098,2]
[334751391,1723535480235,-6591.73,0.00015098,2]
[334751392,1723535480245,-500.0,0.00015098,2]
[334751393,1723535480254,-500.0,0.00015098,2]
[334751394,1723535480266,-1037.55,0.00015098,2]
[334751395,1723535480276,-500.0,0.00015098,2]
[334751396,1723535480286,-500.0,0.00015098,2]
[334751397,1723535480296,-500.0,0.00015098,2]
[334751398,1723535480306,-981.15,0.00015098,2]
[334751399,1723535480315,-550.52729848,0.00015098,2]
[334751400,1723535480325,-500.0,0.00015098,2]
[334751401,1723535480334,-553.64,0.00015098,2]
[334751402,1723535480345,-505.73,0.00015098,2]
[334751403,1723535480354,-888.8,0.00015098,2]
[334751404,1723535480364,-528.17848917,0.00015098,2]
[334751405,1723535480373,-4003.23,0.00015098,2]
[334751406,1723535480383,-500.0,0.00015098,2]
[334751407,1723535480392,-500.0,0.00015098,2]
[334751408,1723535480402,-500.0,0.00015098,2]
[334751409,1723535480412,-773.78,0.00015098,2]
[334751410,1723535480421,-500.0,0.00015098,2]
[334751411,1723535480431,-560.08,0.00015098,2]
[334751412,1723535480440,-500.0,0.00015098,2]
[334751413,1723535480450,-500.0,0.00015098,2]
[334751414,1723535480459,-500.0,0.00015098,2]
[334751415,1723535480468,-1646.38,0.00015098,2]
[334751416,1723535480478,-1106.51,0.00015098,2]
[334751417,1723535480487,-1145.83,0.00015098,2]
[334751418,1723535480497,-500.0,0.00015098,2]
[334751419,1723535480507,-500.0,0.00015098,2]
[334751420,1723535480516,-1271.02,0.00015098,2]
[334751421,1723535480525,-500.0,0.00015098,2]
[334751422,1723535480535,-500.0,0.00015098,2]
[334751423,1723535480547,-1189.17,0.00015098,2]
[334751424,1723535480556,-756.19,0.00015098,2]
[334751425,1723535480566,-633.87,0.00015098,2]
[334751426,1723535480575,-500.0,0.00015098,2]
[334751427,1723535480586,-500.0,0.00015098,2]
[334751428,1723535480595,-445.91012172,0.00015098,2]
[334751429,1723535480606,-500.0,0.00015098,2]
[334751430,1723535480615,-540.71089599,0.00015098,2]
[334751431,1723535480626,-507.8,0.00015098,2]
[334751432,1723535480636,-555.42,0.00015098,2]
[334751433,1723535480646,-500.0,0.00015098,2]
[334751434,1723535480798,-869.38,0.00015098,2]
[334751435,1723535480820,-500.0,0.00015098,2]
[334751436,1723535480830,-500.0,0.00015098,2]
[334751437,1723535480839,-521.82073941,0.00015099,2]
[334751438,1723535480848,-182.52688093,0.00015099,2]
[334751439,1723535480857,-653.45,0.00015099,2]
[334751440,1723535480866,-500.0,0.00015099,2]
[334751441,1723535480875,-663.86,0.00015099,2]
[334751442,1723535480884,-500.0,0.00015099,2]
[334751443,1723535480893,-309.09219693,0.00015099,2]
[334751444,1723535480902,-500.0,0.00015099,2]
[334751445,1723535480911,-500.0,0.00015099,2]
[334751446,1723535480920,-784.51,0.00015099,2]
[334751447,1723535480929,-500.0,0.00015099,2]
[334751448,1723535480938,-500.0,0.00015099,2]
[334751449,1723535480947,-500.0,0.00015099,2]
[334751450,1723535480956,-500.0,0.00015099,2]
[334751451,1723535480965,-500.0,0.00015099,2]
[334751452,1723535480974,-500.0,0.00015099,2]
[334751453,1723535480983,-646.78997276,0.00015099,2]
[334751454,1723535480992,-500.0,0.00015099,2]
[334751455,1723535481001,-500.0,0.00015099,2]
[334751456,1723535481011,-500.0,0.00015099,2]
[334751457,1723535481020,-500.0,0.00015099,2]
[334751458,1723535481029,-500.0,0.00015099,2]
[334751459,1723535481038,-500.0,0.00015099,2]
[334751460,1723535481047,-500.0,0.00015099,2]
[334751461,1723535481056,-500.0,0.00015099,2]
[334751462,1723535481065,-2199.74,0.00015099,2]
[334751463,1723535481075,-553.70848225,0.00015099,2]
[334751464,1723535481084,-500.0,0.00015099,2]
[334751465,1723535481093,-500.0,0.00015099,2]
[334751466,1723535481102,-500.0,0.00015099,2]
[334751467,1723535481111,-500.0,0.00015099,2]
[334751468,1723535481120,-429.49664244,0.00015099,2]
[334751469,1723535481129,-500.0,0.00015099,2]
[334751470,1723535481138,-500.0,0.00015099,2]
[334751471,1723535481147,-362.03155358,0.00015099,2]
[334751472,1723535481157,-500.0,0.00015099,2]
[334751473,1723535481166,-500.0,0.00015099,2]
[334751474,1723535481176,-500.0,0.00015099,2]
[334751475,1723535481185,-500.0,0.00015099,2]
[334751476,1723535481194,-1837.44,0.00015099,2]
[334751477,1723535481204,-909.74,0.00015099,2]
[334751478,1723535481213,-500.0,0.00015099,2]
[334751479,1723535481222,-16518.43,0.00015099,2]
[334751480,1723535481232,-500.0,0.00015099,2]
[334751481,1723535481241,-500.0,0.00015099,2]
[334751482,1723535481251,-500.0,0.00015099,2]
[334751483,1723535481261,-500.0,0.00015099,2]
[334751484,1723535481270,-500.0,0.00015099,2]
[334751485,1723535481279,-932.05,0.00015099,2]
[334751486,1723535481289,-724.39,0.00015099,2]
[334751487,1723535481298,-500.0,0.00015099,2]
[334751488,1723535481308,-500.0,0.00015099,2]
[334751489,1723535481317,-500.0,0.00015099,2]
[334751490,1723535481327,-500.0,0.00015099,2]
[334751491,1723535481336,-587.6,0.00015099,2]
[334751492,1723535481346,-500.0,0.00015099,2]
[334751493,1723535481356,-500.0,0.00015099,2]
[334751494,1723535481365,-908.11,0.00015099,2]
[334751495,1723535481374,-799.22,0.00015099,2]
[334751496,1723535481384,-500.0,0.00015099,2]
[334751497,1723535481393,-500.0,0.00015099,2]
[334751498,1723535481403,-1082.91,0.00015099,2]
[334751499,1723535481412,-500.0,0.00015099,2]
[334751500,1723535481422,-500.0,0.00015099,2]
[334751501,1723535481431,-500.0,0.00015099,2]
[334751502,1723535481440,-500.0,0.00015099,2]
[334751503,1723535481449,-15076.44,0.00015099,2]
[334751504,1723535481458,-500.0,0.00015099,2]
[334751505,1723535481467,-500.0,0.00015099,2]
[334751506,1723535481476,-500.0,0.00015099,2]
[334751507,1723535481485,-500.0,0.00015099,2]
[334751508,1723535481495,-500.0,0.00015099,2]
[334751509,1723535481504,-4670.57,0.00015099,2]
[334751510,1723535481515,-500.0,0.00015099,2]
[334751511,1723535481525,-500.0,0.00015099,2]
[334751512,1723535481534,-667.34,0.00015099,2]
[334751513,1723535481548,-571.04,0.00015099,2]
[334751514,1723535481556,-500.0,0.00015099,2]
[334751515,1723535481566,-1754.66,0.00015099,2]
[334751516,1723535481575,-500.0,0.00015099,2]
[334751517,1723535481585,-500.0,0.00015099,2]
[334751518,1723535481594,-500.0,0.00015099,2]
[334751519,1723535481603,-534.32,0.00015099,2]
[334751520,1723535481613,-500.0,0.00015099,2]
[334751521,1723535481625,-524.33,0.00015099,2]
[334751522,1723535481634,-500.0,0.00015099,2]
[334751523,1723535481643,-500.0,0.00015099,2]
[334751524,1723535481652,-682.76,0.00015099,2]
[334751525,1723535481662,-2553.18,0.00015099,2]
[334751526,1723535481671,-1600.18,0.00015099,2]
[334751527,1723535481680,-500.0,0.00015099,2]
[334751528,1723535481690,-500.0,0.00015099,2]
[334751529,1723535481699,-408.4,0.00015099,2]
[334751530,1723535481709,-500.0,0.00015099,2]
[334751531,1723535481718,-549.82,0.00015099,2]
[334751532,1723535481728,-705.6,0.00015099,2]
[334751533,1723535481737,-500.0,0.00015099,2]
[334751534,1723535481746,-500.0,0.00015099,2]
[334751535,1723535481756,-500.0,0.00015099,2]
[334751536,1723535481766,-158.52449185,0.00015099,2]
[334751537,1723535481776,-500.0,0.00015099,2]
[334751538,1723535481785,-500.0,0.00015099,2]
[334751539,1723535481795,-500.0,0.00015099,2]
[334751540,1723535481804,-500.0,0.00015099,2]
[334751541,1723535481814,-500.0,0.00015099,2]
[334751542,1723535481823,-500.0,0.00015099,2]
[334751543,1723535481832,-160.18622921,0.00015099,2]
[334751544,1723535481842,-500.0,0.00015099,2]
[334751545,1723535481852,-500.0,0.00015099,2]
[334751546,1723535481862,-500.0,0.00015099,2]
[334751547,1723535481871,-500.0,0.00015099,2]
[334751548,1723535481881,-500.0,0.00015099,2]
[334751549,1723535481890,-500.0,0.00015099,2]
[334751550,1723535481900,-500.0,0.00015099,2]
[334751551,1723535481910,-500.0,0.00015099,2]
[334751552,1723535481919,-500.0,0.00015099,2]
[334751553,1723535481929,-500.0,0.00015099,2]
[334751554,1723535481938,-500.0,0.00015099,2]
[334751555,1723535481947,-500.0,0.00015099,2]
[334751556,1723535481957,-500.0,0.00015099,2]
[334751557,1723535481966,-500.0,0.00015099,2]
[334751558,1723535481976,-500.0,0.00015099,2]
[334751559,1723535481985,-803.87,0.00015099,2]
[334751560,1723535481994,-500.0,0.00015099,2]
[334751561,1723535482004,-500.0,0.00015099,2]
[334751562,1723535482013,-313.120899,0.00015159,2]
[334751563,1723535482022,-12495.3726101,0.00015159,2]
[334751564,1723535482032,-224.38282423,0.00015162,2]
[334751565,1723535482041,-500.0,0.00015164,2]
[334751566,1723535482050,-500.0,0.00015164,2]
[334751567,1723535482059,-500.0,0.00015164,2]
[334751568,1723535482068,-401.82093293,0.00015164,2]
[334751569,1723535482078,-338.18913153,0.00015168,2]
[334751570,1723535482087,-500.0,0.00015169,2]
[334751571,1723535482096,-1863.44,0.00015169,2]
[334751572,1723535482105,-500.0,0.00015169,2]
[334751573,1723535482115,-500.0,0.00015169,2]
[334751574,1723535482124,-500.0,0.00015169,2]
[334751575,1723535482134,-500.0,0.00015169,2]
[334751576,1723535482143,-500.0,0.00015169,2]
[334751577,1723535482152,-500.0,0.00015169,2]
[334751578,1723535482162,-520.96000687,0.00015169,2]
[334751579,1723535482172,-518.10796693,0.00015169,2]
[334751580,1723535482182,-150.0,0.00015169,2]
[334751581,1723535482191,-1155.62,0.00015169,2]
[334751582,1723535482201,-290.92072077,0.00015169,2]
[334751583,1723535482211,-714.2,0.00015169,2]
[334751584,1723535482220,-1241.0,0.00015169,2]
[334751585,1723535482230,-500.0,0.00015169,2]
[334751586,1723535482239,-755.25,0.00015169,2]
[334751587,1723535482248,-791.16,0.00015169,2]
[334751588,1723535482258,-500.0,0.00015169,2]
[334751589,1723535482268,-313.87066823,0.00015169,2]
[334751590,1723535482277,-500.0,0.00015169,2]
[334751591,1723535482287,-946.68,0.00015169,2]
[334751592,1723535482296,-595.09795627,0.00015169,2]
[334751593,1723535482305,-1359.34,0.00015169,2]
[334751594,1723535482315,-500.0,0.00015169,2]
[334751595,1723535482324,-500.0,0.00015169,2]
[334751596,1723535482333,-1743.71,0.00015169,2]
[334751597,1723535482343,-1023.06,0.00015169,2]
[334751598,1723535482352,-500.0,0.00015169,2]
[334751599,1723535482362,-500.0,0.00015169,2]
[334751600,1723535482371,-778.62,0.00015169,2]
[334751601,1723535482382,-1760.09,0.00015169,2]
[334751602,1723535482392,-500.0,0.00015169,2]
[334751603,1723535482402,-169.76176965,0.00015169,2]
[334751604,1723535482411,-500.0,0.00015169,2]
[334751605,1723535482420,-500.0,0.00015169,2]
[334751606,1723535482430,-1230.55,0.00015169,2]
[334751607,1723535482440,-537.47,0.00015169,2]
[334751608,1723535482450,-1688.57,0.00015169,2]
[334751609,1723535482459,-1001.08,0.00015169,2]
[334751610,1723535482469,-828.014967,0.00015169,2]
[334751611,1723535482479,-500.0,0.00015169,2]
[334751612,1723535482489,-249.94208039,0.00015169,2]
[334751613,1723535482498,-435.949083,0.00015169,2]
[334751614,1723535482507,-28588.8833,0.00015169,2]
[334751615,1723535482518,-21831.704954,0.00015169,2]
[334751616,1723535482528,-500.0,0.00015169,2]
[334751617,1723535482537,-6177.95,0.00015169,2]